bitfinex/quotes_BTCUSD_20250420
["timestamp","ask_amount","ask_price","bid_price","bid_amount"]
[1745155676350,0.0272826,84144.0,84133.0,0.002915]
[1745155679985,0.0272826,84144.0,84134.0,1.22104]
[1745155680709,0.0272826,84144.0,84135.0,0.00282277]
[1745155689967,0.005,84149.0,84135.0,0.00282277]
[1745155690236,0.11944791,84148.0,84135.0,0.00282277]
[1745155694355,0.004,84149.0,84135.0,0.00282277]
[1745155694556,0.004,84149.0,84135.0,0.05212277]
[1745155696086,0.004,84149.0,84136.0,0.0478]
[1745155696487,0.004,84149.0,84137.0,0.00281834]
[1745155699984,0.004,84149.0,84138.0,0.13224]
[1745155700417,0.004,84149.0,84139.0,0.00281834]
[1745155704977,0.004,84149.0,84140.0,1.22092]
[1745155705396,0.004,84149.0,84141.0,0.0027166]
[1745155715619,0.004,84149.0,84142.0,1.22088]
[1745155715833,0.004,84149.0,84142.0,1.35580802]
[1745155716444,0.004,84149.0,84145.0,0.1]
[1745155716689,0.0006824,84152.0,84145.0,0.1]
[1745155718586,0.0006824,84152.0,84145.0,0.10884684]
[1745155723313,0.0006824,84152.0,84146.0,0.00246163]
[1745155724740,0.0006824,84152.0,84146.0,0.0023777]
[1745155729903,0.0465,84151.0,84146.0,0.0023777]
[1745155730137,0.0465,84151.0,84145.0,0.00884684]
[1745155730308,0.0465,84151.0,84147.0,0.00242385]
[1745155730504,0.0465,84151.0,84146.0,0.34]
[1745155730707,0.0465,84151.0,84149.0,0.34]
[1745155731118,0.0465,84151.0,84150.0,0.00242385]
[1745155733711,0.0465,84151.0,84150.0,1.22322385]
[1745155735798,0.0465,84151.0,84150.0,1.56322385]
[1745155735950,0.0465,84151.0,84150.0,1.69542385]
[1745155740518,0.0465,84151.0,84150.0,1.693]
[1745155741296,0.0006824,84152.0,84150.0,1.353]
[1745155751760,0.0006824,84152.0,84151.0,1.35296]
[1745155770163,0.0006824,84152.0,84151.0,1.35364]
[1745155800485,0.0006824,84152.0,84151.0,1.35344]
[1745155821889,0.0551497,84156.0,84151.0,1.35344]
[1745155822102,0.05528515,84156.0,84152.0,0.13224]
[1745155826511,0.05528515,84156.0,84153.0,1.22072]
[1745155827785,0.0971,84155.0,84154.0,0.13224]
[1745155828313,0.12044791,84155.0,84154.0,0.13224]
[1745155828857,0.21754791,84155.0,84154.0,0.13224]
[1745155830873,0.21754791,84155.0,84154.0,0.47224]
[1745155833135,0.21754791,84155.0,84154.0,0.13224]
[1745155833981,0.21754791,84155.0,84154.0,0.14618099]
[1745155834775,0.21854791,84155.0,84154.0,0.14618099]
[1745155835166,0.21854791,84155.0,84154.0,0.13224]
[1745155836847,0.11014085,84154.0,84153.0,1.22072]
[1745155837040,0.001,84140.0,84120.0,0.0004206]
[1745155837240,0.0459,84138.0,84134.0,0.1]
[1745155837440,0.16534791,84138.0,84134.0,0.1]
[1745155837674,0.16534791,84138.0,84135.0,0.13224]
[1745155838643,0.16534791,84138.0,84135.0,0.14595388]
[1745155859510,0.16534791,84138.0,84136.0,1.56104]
[1745155869078,0.16534791,84138.0,84137.0,0.13224]
[1745155888234,0.16534791,84138.0,84137.0,1.35332]
[1745155893642,0.16526301,84138.0,84137.0,1.35332]
[1745155909681,0.57416301,84138.0,84137.0,1.35332]
[1745155911426,0.57416301,84138.0,84137.0,1.69332]
[1745155920777,0.57516301,84138.0,84137.0,1.35332]
[1745155920993,0.62116301,84138.0,84137.0,1.35332]
[1745155921208,0.62216301,84138.0,84137.0,1.35332]
[1745155921807,0.63670386,84138.0,84137.0,1.35332]
[1745155925535,0.63670386,84138.0,84137.0,1.35553829]
[1745155929901,0.63670386,84138.0,84137.0,1.22329829]
[1745155930113,0.63670386,84138.0,84137.0,1.35553829]
[1745155945011,0.63570386,84138.0,84137.0,1.45553829]
[1745155952016,0.63570386,84138.0,84137.0,1.35348]
[1745155954609,0.76060386,84138.0,84137.0,1.35348]
[1745155954789,0.63570386,84138.0,84137.0,1.35348]
[1745155964619,0.76060386,84138.0,84137.0,1.35348]
[1745155964831,0.63570386,84138.0,84137.0,1.35348]
[1745155967287,0.62116301,84138.0,84137.0,1.35348]
[1745155967495,0.52934791,84138.0,84137.0,1.35448]
[1745155967702,0.52834791,84138.0,84137.0,1.35448]
[1745155983545,0.52834791,84138.0,84137.0,1.35348]
[1745155983846,0.52834791,84138.0,84137.0,1.35344]
[1745155995113,0.62034791,84138.0,84137.0,1.35344]
[1745156005557,0.62034791,84138.0,84137.0,1.22124]
[1745156005758,0.62034791,84138.0,84137.0,1.35344]
[1745156009178,0.62034791,84138.0,84137.0,1.22124]
[1745156009434,0.63588876,84138.0,84137.0,1.35344]
[1745156014137,0.63488876,84138.0,84137.0,1.35344]
[1745156014407,0.001,84113.0,84103.0,0.0004208]
[1745156014637,0.52834791,84112.0,84104.0,1.35344]
[1745156015099,0.52834791,84112.0,84104.0,1.45444]
[1745156015811,0.52834791,84112.0,84104.0,1.45448515]
[1745156016272,0.52834791,84112.0,84104.0,1.47163727]
[1745156018643,0.52834791,84112.0,84105.0,0.34]
[1745156019060,0.52834791,84112.0,84105.0,0.341]
[1745156021614,0.52834791,84112.0,84106.0,0.13224]
[1745156028328,0.0493,84105.0,84104.0,1.23843727]
[1745156028571,0.16874791,84105.0,84104.0,1.37067727]
[1745156029228,0.16874791,84105.0,84104.0,1.71067727]
[1745156030164,0.16874791,84105.0,84104.0,1.57843727]
[1745156030377,0.001,84109.0,84104.0,1.71067727]
[1745156030608,0.0941,84111.0,84105.0,0.34]
[1745156030844,0.11944791,84111.0,84105.0,0.34]
[1745156032495,0.11944791,84111.0,84104.0,1.37067727]
[1745156036358,0.0461,84110.0,84104.0,1.37067727]
[1745156038891,0.11944791,84109.0,84104.0,1.37067727]
[1745156039053,0.0486,84108.0,84104.0,1.37067727]
[1745156039265,0.001,84105.0,84104.0,1.37067727]
[1745156039494,0.57544791,84105.0,84104.0,1.23843727]
[1745156039699,0.57544791,84105.0,84104.0,1.37067727]
[1745156041889,0.59098876,84105.0,84104.0,1.23843727]
[1745156042096,0.63958876,84105.0,84104.0,1.37067727]
[1745156042948,0.63758876,84105.0,84104.0,1.37067727]
[1745156043149,0.62404791,84105.0,84104.0,1.37067727]
[1745156049812,0.62404791,84105.0,84104.0,1.35376]
[1745156051546,0.62404791,84105.0,84104.0,1.36990519]
[1745156054207,0.63858876,84105.0,84104.0,1.36990519]
[1745156054409,0.63958876,84105.0,84104.0,1.36990519]
[1745156054670,0.63958876,84105.0,84104.0,1.22152]
[1745156054892,0.63958876,84105.0,84104.0,1.35376]
[1745156055299,0.6485182,84105.0,84104.0,1.35376]
[1745156056082,0.63958876,84105.0,84104.0,1.22152]
[1745156056295,0.095,84085.0,84081.0,0.0004208]
[1745156056489,0.095,84085.0,84084.0,1.35434563]
[1745156056490,0.62334791,84085.0,84084.0,1.35434563]
[1745156056872,0.62334791,84085.0,84084.0,1.37025411]
[1745156058483,0.52934791,84085.0,84084.0,1.37125411]
[1745156058661,0.52834791,84085.0,84084.0,1.71125411]
[1745156059544,0.52934791,84085.0,84084.0,1.71125411]
[1745156059745,0.52834791,84085.0,84084.0,1.71125411]
[1745156060914,0.52934791,84085.0,84084.0,1.71125411]
[1745156063602,0.52834791,84085.0,84084.0,1.71125411]
[1745156064669,0.52934791,84085.0,84084.0,1.71125411]
[1745156065022,0.52934791,84085.0,84084.0,1.71025411]
[1745156066222,0.52934791,84085.0,84084.0,1.71125411]
[1745156066411,0.52934791,84085.0,84084.0,1.71025411]
[1745156074355,0.57504791,84085.0,84084.0,1.71025411]
[1745156074574,0.57504791,84085.0,84084.0,1.57801411]
[1745156074770,0.57504791,84085.0,84084.0,1.71025411]
[1745156086980,0.62294791,84085.0,84084.0,1.37025411]
[1745156089142,0.62213758,84085.0,84084.0,1.37025411]
[1745156100683,0.21404791,84085.0,84084.0,1.37025411]
[1745156101124,0.0495,84092.0,84084.0,1.37025411]
[1745156101336,0.12044791,84091.0,84084.0,1.37025411]
[1745156105295,0.05,84086.0,84085.0,1.354]
[1745156117893,0.05,84086.0,84085.0,1.355]
[1745156120614,0.05,84086.0,84085.0,1.695]
[1745156121303,0.05,84086.0,84085.0,1.69496]
[1745156121706,0.05,84087.0,84086.0,0.34]
[1745156122106,0.05,84087.0,84086.0,0.341]
[1745156125831,0.05,84088.0,84086.0,0.341]
[1745156126031,0.05,84087.0,84086.0,0.34]
[1745156126381,0.05,84087.0,84086.0,0.341]
[1745156130042,0.05,84087.0,84086.0,0.34]
[1745156131619,0.05,84087.0,84086.0,0.34765446]
[1745156142974,0.05,84087.0,84086.0,0.47985446]
[1745156149214,0.05,84087.0,84086.0,1.70149446]
[1745156154384,0.05,84090.0,84086.0,1.70149446]
[1745156154631,0.05,84092.0,84086.0,1.70149446]
[1745156154839,0.001,84101.0,84086.0,1.70249446]
[1745156154840,0.05,84100.0,84086.0,1.70249446]
[1745156155036,0.05,84094.0,84086.0,1.70149446]
[1745156155355,0.05,84094.0,84086.0,1.70249446]
[1745156156478,0.05,84094.0,84087.0,0.00237803]
[1745156156677,0.05,84100.0,84087.0,0.00237803]
[1745156156886,0.05,84100.0,84088.0,0.00791267]
[1745156157090,0.05,84100.0,84089.0,0.002378]
[1745156157507,0.05,84100.0,84090.0,0.00791267]
[1745156157713,0.05,84100.0,84091.0,0.00237799]
[1745156158089,0.05,84100.0,84092.0,0.00791267]
[1745156158301,0.05,84100.0,84093.0,0.00237794]
[1745156158696,0.05,84100.0,84094.0,0.00237798]
[1745156158914,0.05,84100.0,84087.0,0.00237796]
[1745156159255,0.05,84100.0,84088.0,0.00791267]
[1745156159574,0.05,84100.0,84089.0,0.00237798]
[1745156159900,0.05,84100.0,84090.0,0.00791267]
[1745156160100,0.05,84100.0,84091.0,0.00237798]
[1745156160340,0.05,84100.0,84092.0,0.00787663]
[1745156161007,0.05,84100.0,84086.0,1.69384]
[1745156161218,0.05,84100.0,84087.0,0.00787663]
[1745156166956,0.0486,84101.0,84087.0,0.00787663]
[1745156167094,0.05,84100.0,84087.0,0.00787663]
[1745156176797,0.05,84100.0,84088.0,0.13216]
[1745156176946,0.05,84100.0,84089.0,0.00788102]
[1745156179355,0.0454,84103.0,84090.0,0.00237792]
[1745156179585,0.05,84101.0,84090.0,0.00237792]
[1745156179791,0.05,84101.0,84091.0,0.00785007]
[1745156179993,0.05,84101.0,84092.0,0.00237791]
[1745156180677,0.05,84101.0,84093.0,0.00785007]
[1745156180973,0.05,84101.0,84094.0,0.00237791]
[1745156181385,0.05,84101.0,84095.0,0.00785007]
[1745156181589,0.05,84101.0,84096.0,0.00237791]
[1745156181881,0.05,84101.0,84091.0,0.44]
[1745156182076,0.05,84101.0,84092.0,0.3423779]
[1745156182316,0.05,84101.0,84092.0,0.34785007]
[1745156182520,0.0954,84103.0,84092.0,0.34785007]
[1745156182655,0.0954,84103.0,84094.0,0.34]
[1745156182859,0.05,84105.0,84095.0,0.0023779]
[1745156183441,0.05,84105.0,84096.0,0.00785007]
[1745156183647,0.05,84105.0,84097.0,0.00237782]
[1745156184212,0.05,84105.0,84098.0,0.00785007]
[1745156184518,0.05,84105.0,84099.0,0.00237782]
[1745156184929,0.05,84105.0,84100.0,0.00785007]
[1745156185176,0.05,84105.0,84101.0,0.00237782]
[1745156185313,0.05,84105.0,84095.0,0.00237782]
[1745156185515,0.05,84105.0,84096.0,0.00785007]
[1745156185714,0.05,84105.0,84097.0,0.00237782]
[1745156186114,0.05,84105.0,84098.0,0.00785007]
[1745156186311,0.05,84105.0,84099.0,0.00237782]
[1745156186704,0.0482,84106.0,84100.0,0.00785007]
[1745156186926,0.05,84105.0,84101.0,0.0023778]
[1745156187148,0.05,84105.0,84102.0,0.00237782]
[1745156187348,0.05,84105.0,84103.0,0.13216]
[1745156187672,0.05,84105.0,84104.0,0.00785007]
[1745156189403,0.05,84105.0,84104.0,1.22921007]
[1745156191813,0.039,84105.0,84104.0,1.22921007]
[1745156195057,0.039,84105.0,84104.0,1.36137007]
[1745156204889,0.039,84105.0,84044.0,0.05]
[1745156205237,0.05,84105.0,84093.0,0.1]
[1745156205434,0.05,84105.0,84094.0,1.36234066]
[1745156205651,0.05,84105.0,84094.0,1.35996283]
[1745156207327,0.05,84105.0,84095.0,0.00237783]
[1745156208017,0.05,84105.0,84096.0,0.00652283]
[1745156208230,0.05,84105.0,84097.0,0.00237783]
[1745156208542,0.05,84105.0,84098.0,0.00652283]
[1745156208743,0.05,84105.0,84099.0,0.00237783]
[1745156209145,0.05,84105.0,84100.0,0.00652283]
[1745156209345,0.05,84105.0,84101.0,0.00237784]
[1745156209666,0.05,84105.0,84095.0,0.00237784]
[1745156210069,0.05,84105.0,84096.0,0.00652283]
[1745156210459,0.05,84105.0,84097.0,0.00237781]
[1745156210794,0.05,84105.0,84098.0,0.00652283]
[1745156210954,0.05,84105.0,84099.0,0.00237783]
[1745156211366,0.05,84105.0,84100.0,0.00652283]
[1745156211566,0.05,84105.0,84101.0,0.00237784]
[1745156211764,0.05,84105.0,84095.0,0.00237784]
[1745156211969,0.05,84105.0,84102.0,0.00652283]
[1745156212216,0.05,84105.0,84095.0,0.00237782]
[1745156212453,0.05,84105.0,84103.0,0.00652283]
[1745156212635,0.05,84105.0,84095.0,0.00237782]
[1745156212851,0.05,84105.0,84104.0,0.00652283]
[1745156213044,0.05,84105.0,84095.0,0.00237782]
[1745156213403,0.05,84105.0,84104.0,0.00652283]
[1745156213607,0.05,84105.0,84095.0,0.00237782]
[1745156213881,0.05,84105.0,84104.0,0.00652283]
[1745156214067,0.05,84105.0,84095.0,0.00237782]
[1745156214497,0.05,84105.0,84096.0,0.00652283]
[1745156214754,0.05,84105.0,84097.0,0.00237783]
[1745156215411,0.05,84105.0,84098.0,0.00652283]
[1745156215598,0.05,84105.0,84099.0,0.00237782]
[1745156216008,0.05,84105.0,84100.0,0.00652283]
[1745156216471,0.05,84105.0,84094.0,1.35344]
[1745156216681,0.05,84105.0,84101.0,0.00652283]
[1745156216888,0.05,84105.0,84094.0,1.35344]
[1745156217200,0.05,84105.0,84095.0,0.34]
[1745156217422,0.05,84105.0,84095.0,0.34652283]
[1745156218162,0.05,84105.0,84097.0,0.34]
[1745156218529,0.05,84105.0,84098.0,0.00652283]
[1745156218968,0.05,84105.0,84099.0,0.00237782]
[1745156219367,0.05,84105.0,84100.0,0.00652283]
[1745156219768,0.05,84105.0,84097.0,0.34]
[1745156219967,0.05,84105.0,84098.0,0.00652283]
[1745156220177,0.05,84105.0,84099.0,0.00237783]
[1745156220595,0.05,84105.0,84100.0,0.00652283]
[1745156220959,0.05,84105.0,84097.0,0.34]
[1745156221202,0.05,84105.0,84098.0,0.00652283]
[1745156221650,0.0482,84106.0,84099.0,0.00237783]
[1745156221974,0.0482,84106.0,84100.0,0.00652283]
[1745156222177,0.0482,84106.0,84101.0,0.00237774]
[1745156222578,0.0482,84106.0,84102.0,0.00652283]
[1745156222785,0.0482,84106.0,84103.0,0.00237775]
[1745156223193,0.0482,84106.0,84097.0,0.00237776]
[1745156223415,0.0482,84106.0,84104.0,0.00652283]
[1745156223623,0.0482,84106.0,84100.0,0.00237777]
[1745156223842,0.0482,84106.0,84105.0,0.00652283]
[1745156224190,0.0482,84106.0,84097.0,0.00237776]
[1745156224396,0.0482,84106.0,84099.0,0.1]
[1745156224512,0.004,84109.0,84105.0,0.00652283]
[1745156224713,0.004,84109.0,84106.0,0.00237769]
[1745156224914,0.004,84109.0,84107.0,0.34]
[1745156225168,0.4089,84128.0,84108.0,0.00885693]
[1745156225169,0.0482,84118.0,84108.0,0.00885693]
[1745156225395,0.02662975,84118.0,84109.0,0.34]
[1745156225617,0.0008424,84121.0,84111.0,0.34]
[1745156225828,0.0008424,84121.0,84112.0,0.44237731]
[1745156226061,0.0008424,84121.0,84112.0,0.44]
[1745156226265,0.0008424,84121.0,84113.0,0.34646482]
[1745156228065,0.0008424,84121.0,84113.0,0.00646482]
[1745156228380,0.0008424,84121.0,84114.0,0.00646482]
[1745156228588,0.0008424,84121.0,84110.0,0.13212]
[1745156228792,0.049042,84120.0,84112.0,0.1]
[1745156228968,0.049042,84120.0,84115.0,0.00646482]
[1745156229319,0.049042,84120.0,84116.0,0.00646482]
[1745156229738,0.049042,84120.0,84111.0,0.11944791]
[1745156229899,0.049042,84120.0,84117.0,0.00646482]
[1745156230060,0.000842,84120.0,84111.0,0.11944791]
[1745156230258,0.000842,84120.0,84118.0,0.00646482]
[1745156230463,0.000842,84120.0,84111.0,0.11944791]
[1745156230843,0.000842,84120.0,84112.0,0.1]
[1745156231117,0.000842,84120.0,84112.0,0.10646482]
[1745156234231,0.000842,84120.0,84113.0,0.00237724]
[1745156234428,0.000842,84120.0,84113.0,0.10879985]
[1745156234626,0.000842,84120.0,84118.0,0.1]
[1745156235266,0.000842,84120.0,84119.0,1.36207914]
[1745156235603,0.457942,84134.0,84122.0,0.1]
[1745156235781,0.00013539,84126.0,84124.0,0.1]
[1745156236103,0.00013539,84126.0,84125.0,0.10872547]
[1745156237621,0.00013539,84126.0,84125.0,0.10972547]
[1745156237990,0.00013539,84126.0,84125.0,0.10872547]
[1745156238663,0.000842,84134.0,84126.0,0.34]
[1745156238871,0.02655008,84138.0,84132.0,0.1]
[1745156239649,0.02655008,84138.0,84133.0,0.34632708]
[1745156240974,0.02655008,84138.0,84133.0,0.00632708]
[1745156241394,0.02655008,84138.0,84132.0,0.1]
[1745156241632,0.02655008,84138.0,84128.0,0.34]
[1745156241633,0.02051929,84138.0,84134.0,0.00632708]
[1745156241861,0.0008418,84139.0,84135.0,0.34237659]
[1745156242088,0.0008418,84139.0,84137.0,0.1]
[1745156242315,0.0008418,84139.0,84138.0,0.34237662]
[1745156242547,0.0008418,84139.0,84138.0,0.00631145]
[1745156242783,0.0530416,84149.0,84138.0,0.00868805]
[1745156243238,0.0530416,84149.0,84138.0,0.0023766]
[1745156243905,0.0530416,84149.0,84139.0,0.00237656]
[1745156244185,0.0530416,84149.0,84139.0,0.00868801]
[1745156244661,0.0530416,84149.0,84139.0,0.03068349]
[1745156245100,0.0530416,84149.0,84139.0,0.00868801]
[1745156245339,0.0530416,84149.0,84140.0,1.35664]
[1745156246001,0.0530416,84149.0,84141.0,0.34]
[1745156246224,0.0530416,84149.0,84141.0,0.00631145]
[1745156247095,0.0530416,84149.0,84142.0,0.00237656]
[1745156247315,0.0530416,84149.0,84143.0,0.00624589]
[1745156247709,0.0530416,84149.0,84140.0,1.35664]
[1745156247947,0.0530416,84149.0,84144.0,0.00624589]
[1745156248186,0.0530416,84149.0,84141.0,0.34]
[1745156248383,0.0530416,84149.0,84145.0,0.00624589]
[1745156248500,0.0530416,84149.0,84141.0,0.34]
[1745156248707,0.0530416,84149.0,84142.0,0.00624589]
[1745156250167,0.0530416,84149.0,84143.0,0.00237653]
[1745156250373,0.0530416,84149.0,84143.0,0.10237653]
[1745156250807,0.0048416,84149.0,84144.0,0.00621258]
[1745156250977,0.0048416,84149.0,84145.0,0.00237649]
[1745156251624,0.0048416,84149.0,84146.0,0.00621258]
[1745156251801,0.0048416,84149.0,84147.0,0.00237647]
[1745156252211,0.0048416,84149.0,84148.0,0.00237647]
[1745156252415,0.0048416,84149.0,84141.0,0.00237647]
[1745156252740,0.0048416,84149.0,84143.0,0.1]
[1745156253344,0.0048416,84149.0,84144.0,0.00621258]
[1745156253552,0.0048416,84149.0,84145.0,0.13576]
[1745156254098,0.0048416,84149.0,84146.0,0.00621258]
[1745156254348,0.0048416,84149.0,84145.0,0.13576]
[1745156254600,0.0048416,84149.0,84147.0,0.00621258]
[1745156254750,0.0048416,84149.0,84145.0,0.13576]
[1745156254952,0.0048416,84149.0,84148.0,0.00621258]
[1745156255112,0.0048416,84149.0,84145.0,0.13576]
[1745156255315,0.0048416,84149.0,84146.0,0.00621258]
[1745156255782,0.0048416,84149.0,84145.0,0.13576]
[1745156256010,0.0048416,84149.0,84147.0,0.00621258]
[1745156256153,0.0048416,84149.0,84145.0,0.13576]
[1745156256672,0.0048416,84149.0,84146.0,0.00621258]
[1745156256877,0.0048416,84149.0,84145.0,0.13576]
[1745156257087,0.0048416,84149.0,84146.0,0.00621258]
[1745156257281,0.0048416,84149.0,84145.0,0.13576]
[1745156257497,0.0048416,84149.0,84146.0,0.00621258]
[1745156257706,0.0048416,84149.0,84145.0,0.13576]
[1745156257904,0.0048416,84149.0,84146.0,0.00621258]
[1745156258107,0.0048416,84149.0,84145.0,0.13576]
[1745156258309,0.0048416,84149.0,84146.0,0.00621258]
[1745156258513,0.0048416,84149.0,84145.0,0.13576]
[1745156258713,0.0048416,84149.0,84146.0,0.00621258]
[1745156258894,0.0048416,84149.0,84145.0,0.13576]
[1745156259116,0.0048416,84149.0,84146.0,1.22693258]
[1745156259875,0.0048416,84149.0,84147.0,0.13576]
[1745156260434,0.0048416,84149.0,84148.0,0.00621258]
[1745156261977,0.0048416,84149.0,84148.0,0.00858906]
[1745156262233,0.0048416,84149.0,84139.0,0.0225627]
[1745156262450,0.0048416,84149.0,84143.0,0.1]
[1745156263122,0.0048416,84149.0,84144.0,0.00620307]
[1745156263774,0.0048416,84149.0,84139.0,0.02176322]
[1745156263999,0.0048416,84149.0,84143.0,0.1]
[1745156264627,0.0048416,84149.0,84144.0,0.00620307]
[1745156265158,0.0048416,84149.0,84139.0,0.02176322]
[1745156265449,0.0048416,84149.0,84145.0,1.22068]
[1745156265917,0.0048416,84149.0,84146.0,0.00620307]
[1745156266117,0.0048416,84149.0,84145.0,1.22068]
[1745156266557,0.0048416,84149.0,84146.0,0.00620307]
[1745156266969,0.0048416,84149.0,84145.0,1.22068]
[1745156267182,0.0048416,84149.0,84147.0,0.00620307]
[1745156267417,0.0048416,84149.0,84145.0,1.22068]
[1745156267627,0.0048416,84149.0,84148.0,0.00620307]
[1745156268071,0.0048416,84149.0,84145.0,1.22068]
[1745156268290,0.0048416,84149.0,84148.0,0.00620307]
[1745156268518,0.0048416,84149.0,84145.0,1.22068]
[1745156268942,0.0048416,84149.0,84146.0,0.00620307]
[1745156269287,0.0048416,84149.0,84145.0,1.22068]
[1745156269494,0.0048416,84149.0,84146.0,0.00620307]
[1745156269695,0.0048416,84149.0,84140.0,0.13572]
[1745156269902,0.0048416,84149.0,84143.0,0.1]
[1745156270308,0.0048416,84149.0,84144.0,0.00620307]
[1745156270722,0.0048416,84149.0,84140.0,0.13572]
[1745156270952,0.0048416,84149.0,84143.0,0.1]
[1745156271583,0.0048416,84149.0,84144.0,0.00620307]
[1745156272206,0.0048416,84149.0,84140.0,0.13572]
[1745156272406,0.0048416,84149.0,84145.0,0.00620307]
[1745156272610,0.0048416,84149.0,84140.0,0.13572]
[1745156272817,0.0048416,84149.0,84146.0,0.00620307]
[1745156273014,0.0048416,84149.0,84140.0,0.13572]
[1745156273267,0.0048416,84149.0,84147.0,0.00620307]
[1745156273638,0.0048416,84149.0,84139.0,0.02176322]
[1745156273846,0.0048416,84149.0,84143.0,0.1]
[1745156274467,0.0048416,84149.0,84144.0,0.00620307]
[1745156275232,0.0048416,84149.0,84139.0,0.02176322]
[1745156275453,0.0048416,84149.0,84145.0,1.35636]
[1745156275702,0.0496,84148.0,84145.0,1.35636]
[1745156276152,0.048,84147.0,84146.0,0.00619894]
[1745156276371,0.0976,84147.0,84146.0,0.14119894]
[1745156276591,0.0976,84147.0,84146.0,0.135]
[1745156276823,0.0976,84147.0,84146.0,0.14119894]
[1745156283562,0.0976,84147.0,84146.0,0.48119894]
[1745156287239,0.09407614,84167.0,84146.0,0.14119894]
[1745156287355,0.11944791,84159.0,84146.0,0.14119894]
[1745156289774,0.09407614,84167.0,84147.0,0.00237658]
[1745156290168,0.0486,84159.0,84147.0,0.00237658]
[1745156290400,0.0486,84159.0,84148.0,0.00619894]
[1745156290592,0.0486,84159.0,84149.0,0.00237649]
[1745156291056,0.0486,84159.0,84150.0,0.00619585]
[1745156291404,0.0486,84159.0,84146.0,0.135]
[1745156291577,0.0486,84159.0,84151.0,0.00619585]
[1745156291798,0.0486,84159.0,84146.0,0.135]
[1745156292006,0.0486,84159.0,84152.0,0.00619585]
[1745156292265,0.0486,84159.0,84146.0,0.135]
[1745156292462,0.0486,84159.0,84153.0,0.00619585]
[1745156292807,0.0486,84159.0,84146.0,0.135]
[1745156293202,0.0486,84159.0,84147.0,0.00619585]
[1745156293443,0.0486,84159.0,84148.0,1.22064]
[1745156294115,0.0486,84159.0,84149.0,0.00619585]
[1745156298185,0.0486,84159.0,84150.0,0.135]
[1745156298807,0.0486,84159.0,84151.0,0.00619585]
[1745156302936,0.0486,84159.0,84153.0,0.34]
[1745156303144,0.0486,84159.0,84154.0,0.00619485]
[1745156306087,0.4565,84160.0,84154.0,0.00619485]
[1745156306088,0.4089,84160.0,84154.0,0.00619485]
[1745156306292,0.40903542,84160.0,84154.0,0.00619485]
[1745156307862,0.40903542,84160.0,84155.0,0.13632]
[1745156308342,0.40903542,84160.0,84156.0,0.00619485]
[1745156314466,0.40903542,84160.0,84157.0,1.22064]
[1745156314842,0.40903542,84160.0,84158.0,0.00617124]
[1745156315854,0.00013542,84160.0,84158.0,0.00617124]
[1745156325530,0.40076893,84169.0,84158.0,0.00617124]
[1745156325727,0.11944791,84168.0,84158.0,0.00617124]
[1745156328428,0.001,84167.0,84159.0,1.35692]
[1745156328633,0.001,84163.0,84160.0,1.35692]
[1745156329193,0.0468,84162.0,84161.0,0.00565059]
[1745156330608,0.0468,84162.0,84161.0,0.03127499]
[1745156339999,0.001,84163.0,84161.0,0.03127499]
[1745156340194,0.0497,84185.0,84162.0,0.09407614]
[1745156340409,0.001,84181.0,84163.0,0.00802722]
[1745156340605,0.001,84181.0,84163.0,0.01679381]
[1745156342377,0.0507,84185.0,84163.0,0.01441792]
[1745156342757,0.00011792,84185.0,84164.0,0.04867583]
[1745156342977,0.00011792,84185.0,84165.0,0.0489]
[1745156343197,0.00011792,84185.0,84166.0,0.00237583]
[1745156343472,0.00011792,84185.0,84166.0,0.00802484]
[1745156343620,0.00011792,84185.0,84166.0,0.00564901]
[1745156355546,0.00011792,84185.0,84167.0,0.13472]
[1745156355847,0.00011792,84185.0,84168.0,0.00557166]
[1745156359084,0.00011792,84185.0,84168.0,0.34557166]
[1745156360419,0.00011792,84185.0,84170.0,0.34]
[1745156360752,0.00011792,84185.0,84171.0,0.00557166]
[1745156364857,0.00011792,84185.0,84172.0,0.00237582]
[1745156365324,0.00011792,84185.0,84173.0,0.13472]
[1745156365528,0.00011792,84185.0,84173.0,0.14029166]
[1745156366326,0.00011792,84185.0,84174.0,0.00237579]
[1745156366706,0.00011792,84185.0,84175.0,0.00557501]
[1745156367685,0.00011792,84185.0,84176.0,0.00550249]
[1745156367870,0.00011792,84185.0,84176.0,0.00787815]
[1745156368193,0.00011792,84185.0,84177.0,0.00548813]
[1745156368410,0.00011792,84185.0,84178.0,0.00237565]
[1745156368751,0.00011792,84185.0,84179.0,0.00548813]
[1745156369181,0.00011792,84185.0,84180.0,0.00237565]
[1745156369408,0.00011792,84185.0,84180.0,0.00785933]
[1745156370059,0.00011792,84185.0,84181.0,1.22028]
[1745156370812,0.00011792,84185.0,84182.0,0.00548368]
[1745156372184,0.00011792,84185.0,84183.0,0.00237558]
[1745156372416,0.00011792,84185.0,84183.0,0.1]
[1745156372672,0.00011792,84185.0,84184.0,0.00547686]
[1745156372872,0.00011792,84185.0,84184.0,0.10547686]
[1745156373049,0.00011792,84185.0,84184.0,0.10885224]
[1745156374539,0.00011792,84185.0,84184.0,0.10647686]
[1745156375207,0.00011792,84185.0,84184.0,1.46067686]
[1745156380636,0.00011792,84185.0,84184.0,0.24047686]
[1745156382204,0.004,84189.0,84184.0,0.10647686]
[1745156382401,0.004,84189.0,84188.0,0.1]
[1745156382607,0.004,84189.0,84188.0,0.1054022]
[1745156383783,0.004,84189.0,84188.0,0.10777757]
[1745156385086,0.004,84189.0,84188.0,0.44777757]
[1745156385306,0.004,84189.0,84188.0,1.7995222]
[1745156388095,0.004,84189.0,84188.0,0.5794022]
[1745156388310,5e-05,84189.0,84188.0,0.56585011]
[1745156388456,0.0095796,84200.0,84189.0,0.0458]
[1745156388664,0.0004206,84203.0,84196.0,0.1]
[1745156388872,0.0004206,84203.0,84197.0,0.00237504]
[1745156389292,0.0004206,84203.0,84198.0,0.00533252]
[1745156389642,0.0004206,84203.0,84199.0,0.00237504]
[1745156389817,0.0004206,84203.0,84200.0,0.00533252]
[1745156390040,0.0004206,84203.0,84197.0,0.00237504]
[1745156390326,0.0004206,84203.0,84198.0,0.00533252]
[1745156390531,0.0004206,84203.0,84199.0,0.00237504]